fUSD/lending_fUSD_20250622
["ID","MTS","AMOUNT","RATE_DAILY","PERIOD"]
[367028948,1750623056564,-490.0,0.00035616,15]
[367028949,1750623056573,-861.9,0.00035616,15]
[367028951,1750623056583,-494.82736737,0.00035616,15]
[367028953,1750623056592,-490.0,0.00035616,15]
[367028954,1750623056601,-490.0,0.00035616,15]
[367028956,1750623056611,-490.0,0.00035616,15]
[367028957,1750623056620,-490.0,0.00035616,15]
[367028958,1750623056629,-490.0,0.00035616,15]
[367028959,1750623056638,-1217.63,0.00035616,15]
[367028960,1750623056647,-490.0,0.00035616,15]
[367028961,1750623056656,-832.77,0.00035616,15]
[367028962,1750623056666,-490.0,0.00035616,15]
[367028963,1750623056675,-2349.97,0.00035616,15]
[367028964,1750623056685,-490.0,0.00035616,15]
[367028965,1750623056694,-490.0,0.00035616,15]
[367028966,1750623056703,-679.89,0.00035616,15]
[367028967,1750623056713,-490.0,0.00035616,15]
[367028968,1750623056723,-490.0,0.00035616,15]
[367028969,1750623056732,-1003.86,0.00035616,15]
[367028970,1750623056742,-1059.75,0.00035616,15]
[367028971,1750623056751,-490.0,0.00035616,15]
[367028972,1750623056761,-490.0,0.00035616,15]
[367028973,1750623056773,-490.0,0.00035616,15]
[367028974,1750623056783,-3235.37,0.00035616,2]
[367028975,1750623056792,-490.0,0.00035616,15]
[367028976,1750623056802,-502.269256,0.00035616,15]
[367028977,1750623056811,-490.0,0.00035616,15]
[367028978,1750623056820,-490.0,0.00035616,15]
[367028979,1750623056830,-658.99,0.00035616,15]
[367028980,1750623056840,-490.0,0.00035616,15]
[367028981,1750623056849,-1934.4,0.00035616,15]
[367028982,1750623056859,-1684.67,0.00035616,15]
[367028983,1750623056870,-490.0,0.00035616,15]
[367028984,1750623056880,-490.0,0.00035616,15]
[367028985,1750623056889,-490.0,0.00035616,15]
[367028986,1750623056899,-490.0,0.00035616,15]
[367028987,1750623056908,-490.0,0.00035616,15]
[367028988,1750623056917,-490.0,0.00035616,15]
[367028989,1750623056926,-1339.11,0.00035616,15]
[367028990,1750623056936,-620.32,0.00035616,15]
[367028991,1750623056945,-490.0,0.00035616,15]
[367028992,1750623056955,-576.99,0.00035616,15]
[367028993,1750623056964,-2587.68,0.00035616,15]
[367028994,1750623056973,-3348.94,0.00035616,15]
[367028995,1750623056982,-691.75,0.00035616,15]
[367028996,1750623056992,-490.0,0.00035616,15]
[367028997,1750623057001,-727.36,0.00035616,15]
[367028998,1750623057010,-490.0,0.00035616,14]
[367028999,1750623057021,-490.0,0.00035616,15]
[367029000,1750623057031,-2834.14,0.00035616,15]
[367029001,1750623057040,-490.0,0.00035616,15]
[367029002,1750623057050,-490.0,0.00035616,15]
[367029003,1750623057059,-490.0,0.00035616,15]
[367029004,1750623057068,-490.0,0.00035616,15]
[367029005,1750623057078,-490.0,0.00035616,15]
[367029006,1750623057087,-490.0,0.00035616,15]
[367029007,1750623057096,-560.95134765,0.00035616,15]
[367029008,1750623057106,-490.0,0.00035616,15]
[367029009,1750623057115,-490.0,0.00035616,15]
[367029010,1750623057124,-490.0,0.00035616,15]
[367029011,1750623057133,-778.0,0.00035616,15]
[367029012,1750623057143,-1144.72,0.00035616,15]
[367029013,1750623057152,-768.07,0.00035616,15]
[367029014,1750623057162,-490.0,0.00035616,15]
[367029015,1750623057171,-1027.25,0.00035616,15]
[367029016,1750623057181,-490.0,0.00035616,15]
[367029017,1750623057190,-640.48,0.00035616,15]
[367029018,1750623057199,-490.0,0.00035616,15]
[367029019,1750623057209,-490.0,0.00035616,15]
[367029020,1750623057219,-490.0,0.00035616,15]
[367029021,1750623057229,-490.0,0.00035616,15]
[367029022,1750623057238,-490.0,0.00035616,15]
[367029023,1750623057248,-490.0,0.00035616,15]
[367029024,1750623057257,-490.0,0.00035616,15]
[367029025,1750623057270,-490.0,0.00035616,15]
[367029026,1750623057279,-490.0,0.00035616,15]
[367029027,1750623057288,-2109.67,0.00035616,15]
[367029028,1750623057298,-1879.25,0.00035616,15]
[367029029,1750623057307,-490.0,0.00035616,15]
[367029030,1750623057317,-742.62,0.00035616,15]
[367029031,1750623057326,-494.90961256,0.00035616,15]
[367029032,1750623057335,-490.0,0.00035616,15]
[367029033,1750623057345,-490.0,0.00035616,15]
[367029034,1750623057354,-490.0,0.00035616,15]
[367029035,1750623057364,-490.0,0.00035616,15]
[367029036,1750623057373,-490.0,0.00035616,15]
[367029037,1750623057382,-1075.23,0.00035616,15]
[367029038,1750623057392,-490.0,0.00035616,15]
[367029039,1750623057401,-828.03,0.00035616,15]
[367029040,1750623057410,-490.0,0.00035616,15]
[367029041,1750623057420,-490.0,0.00035616,15]
[367029042,1750623057429,-490.0,0.00035616,15]
[367029043,1750623057439,-490.0,0.00035616,15]
[367029044,1750623057449,-1088.71,0.00035616,15]
[367029045,1750623057459,-490.0,0.00035616,15]
[367029046,1750623057468,-3143.04,0.00035616,15]
[367029047,1750623057478,-490.0,0.00035616,15]
[367029048,1750623057487,-490.0,0.00035616,15]
[367029049,1750623057497,-490.0,0.00035616,15]
[367029050,1750623057506,-490.0,0.00035616,15]
[367029051,1750623057518,-742.73,0.00035616,15]
[367029052,1750623057528,-490.0,0.00035616,15]
[367029053,1750623057537,-2097.11,0.00035616,15]
[367029054,1750623057546,-517.63,0.00035616,15]
[367029055,1750623057555,-490.0,0.00035616,15]
[367029056,1750623057565,-490.0,0.00035616,15]
[367029057,1750623057575,-2355.34,0.00035616,15]
[367029058,1750623057585,-490.0,0.00035616,15]
[367029059,1750623057595,-490.0,0.00035616,15]
[367029060,1750623057604,-490.0,0.00035616,15]
[367029061,1750623057613,-490.0,0.00035616,15]
[367029062,1750623057623,-649.0,0.00035616,15]
[367029063,1750623057632,-2199.48,0.00035616,15]
[367029064,1750623057642,-603.99,0.00035616,15]
[367029065,1750623057651,-1415.25,0.00035616,15]
[367029066,1750623057661,-490.0,0.00035616,15]
[367029067,1750623057671,-1050.32,0.00035616,15]
[367029068,1750623057680,-490.0,0.00035616,15]
[367029069,1750623057690,-490.0,0.00035616,15]
[367029070,1750623057699,-491.41933267,0.00035616,15]
[367029071,1750623057709,-3076.28,0.00035616,15]
[367029072,1750623057718,-490.0,0.00035616,15]
[367029073,1750623057728,-2112.09,0.00035616,15]
[367029074,1750623057737,-1166.28,0.00035616,15]
[367029075,1750623057747,-490.0,0.00035616,15]
[367029076,1750623057756,-490.0,0.00035616,15]
[367029077,1750623057769,-881.74,0.00035616,15]
[367029078,1750623057779,-530.02311964,0.00035616,15]
[367029079,1750623057788,-490.0,0.00035616,15]
[367029080,1750623057798,-848.78,0.00035616,15]
[367029081,1750623057807,-2630.02,0.00035616,15]
[367029082,1750623057817,-855.43,0.00035616,15]
[367029083,1750623057827,-2967.31,0.00035616,15]
[367029084,1750623057839,-490.0,0.00035616,15]
[367029085,1750623057848,-2172.4,0.00035616,15]
[367029086,1750623057858,-684.08,0.00035616,7]
[367029087,1750623057867,-490.0,0.00035616,15]
[367029088,1750623057877,-575.21,0.00035616,15]
[367029089,1750623057886,-490.0,0.00035616,15]
[367029090,1750623057895,-490.0,0.00035616,15]
[367029091,1750623057905,-490.0,0.00035616,15]
[367029092,1750623057914,-490.0,0.00035616,15]
[367029093,1750623057924,-490.0,0.00035616,15]
[367029094,1750623057934,-490.0,0.00035616,15]
[367029095,1750623057944,-490.0,0.00035616,15]
[367029096,1750623057953,-490.0,0.00035616,15]
[367029097,1750623057962,-817.54,0.00035616,15]
[367029098,1750623057971,-490.0,0.00035616,15]
[367029099,1750623057981,-1708.69,0.00035616,15]
[367029100,1750623057990,-500.0,0.00035616,15]
[367029101,1750623057999,-490.0,0.00035616,15]
[367029102,1750623058009,-500.0,0.00035616,15]
[367029103,1750623058024,-490.0,0.00035616,15]
[367029104,1750623058033,-500.0,0.00035616,15]
[367029105,1750623058043,-222.65,0.00035616,15]
[367029106,1750623058053,-490.0,0.00035616,15]
[367029107,1750623058063,-490.0,0.00035616,15]
[367029108,1750623058072,-490.0,0.00035616,15]
[367029109,1750623058082,-2149.8,0.00035616,15]
[367029110,1750623058091,-490.0,0.00035616,15]
[367029111,1750623058100,-1041.02,0.00035616,15]
[367029112,1750623058109,-490.0,0.00035616,15]
[367029113,1750623058119,-490.0,0.00035616,15]
[367029114,1750623058129,-490.0,0.00035616,15]
[367029115,1750623058138,-2438.09,0.00035616,15]
[367029116,1750623058147,-1517.34,0.00035616,15]
[367029117,1750623058157,-162.77391361,0.00035616,15]
[367029118,1750623058166,-9860.11,0.00035616,15]
[367029119,1750623058176,-1116.35,0.00035616,15]
[367029120,1750623058185,-490.0,0.00035616,15]
[367029121,1750623058195,-682.92,0.00035616,15]
[367029122,1750623058204,-2371.74,0.00035616,15]
[367029123,1750623058214,-490.0,0.00035616,15]
[367029124,1750623058223,-1476.17,0.00035616,15]
[367029125,1750623058232,-1002.26963621,0.00035616,15]
[367029126,1750623058241,-490.0,0.00035616,15]
[367029127,1750623058251,-490.0,0.00035616,7]
[367029128,1750623058261,-490.0,0.00035616,15]
[367029129,1750623058276,-490.0,0.00035616,15]
[367029130,1750623058285,-490.0,0.00035616,15]
[367029131,1750623058295,-1119.85,0.00035616,15]
[367029132,1750623058304,-2193.19,0.00035616,15]
[367029133,1750623058313,-490.0,0.00035616,15]
[367029134,1750623058323,-490.0,0.00035616,15]
[367029135,1750623058332,-1492.62,0.00035616,15]
[367029136,1750623058342,-1962.92,0.00035616,15]
[367029137,1750623058351,-490.0,0.00035616,15]
[367029138,1750623058360,-490.0,0.00035616,15]
[367029139,1750623058370,-1266.89,0.00035616,15]
[367029140,1750623058379,-490.0,0.00035616,15]
[367029141,1750623058388,-590.66,0.00035616,15]
[367029142,1750623058397,-490.0,0.00035616,15]
[367029143,1750623058407,-490.0,0.00035616,15]
[367029144,1750623058416,-1698.23,0.00035616,15]
[367029145,1750623058425,-490.0,0.00035616,15]
[367029146,1750623058435,-744.1,0.00035616,15]
[367029147,1750623058444,-490.0,0.00035616,15]
[367029148,1750623058453,-490.0,0.00035616,15]
[367029149,1750623058463,-1072.64,0.00035616,15]
[367029150,1750623058472,-1628.34,0.00035616,15]
[367029151,1750623058482,-490.0,0.00035616,15]
[367029152,1750623058491,-490.0,0.00035616,15]
[367029153,1750623058500,-3842.56,0.00035616,15]
[367029154,1750623058510,-490.0,0.00035616,15]
[367029155,1750623058527,-490.0,0.00035616,15]
[367029156,1750623058536,-12040.91,0.00035616,15]
[367029157,1750623058545,-490.0,0.00035616,15]
[367029158,1750623058554,-490.0,0.00035616,15]
[367029159,1750623058564,-2625.62,0.00035616,15]
[367029160,1750623058573,-490.0,0.00035616,15]
[367029161,1750623058583,-585.98,0.00035616,15]
[367029162,1750623058592,-490.0,0.00035616,15]
[367029163,1750623058602,-2167.43,0.00035616,15]
[367029164,1750623058611,-490.0,0.00035616,15]
[367029165,1750623058621,-490.0,0.00035616,15]
[367029166,1750623058630,-490.0,0.00035616,15]
[367029167,1750623058640,-490.0,0.00035616,15]
[367029168,1750623058650,-989.05,0.00035616,15]
[367029169,1750623058659,-1185.19,0.00035616,15]
[367029170,1750623058668,-490.0,0.00035616,15]
[367029171,1750623058677,-481.18521858,0.00035616,15]
[367029172,1750623058687,-1298.39,0.00035616,15]
[367029173,1750623058696,-490.0,0.00035616,15]
[367029174,1750623058705,-490.0,0.00035616,15]
[367029175,1750623058714,-300.0,0.00035616,15]
[367029176,1750623058723,-3871.45,0.00035616,15]
[367029177,1750623058733,-897.64,0.00035616,15]
[367029178,1750623058742,-490.0,0.00035616,15]
[367029179,1750623058751,-1629.11,0.00035616,15]
[367029180,1750623058760,-490.0,0.00035616,15]
[367029181,1750623058774,-490.0,0.00035616,15]
[367029182,1750623058783,-7793.54,0.00035616,15]
[367029183,1750623058793,-597.32,0.00035616,15]
[367029184,1750623058802,-1361.81,0.00035616,15]
[367029185,1750623058812,-580.92890947,0.00035616,15]
[367029186,1750623058822,-631.27,0.00035616,15]
[367029187,1750623058831,-6394.85,0.00035616,15]
[367029188,1750623058844,-490.0,0.00035616,15]
[367029189,1750623058854,-490.0,0.00035616,15]
[367029190,1750623058863,-490.0,0.00035616,15]
[367029191,1750623058872,-490.0,0.00035616,15]
[367029192,1750623058883,-490.0,0.00035616,15]
[367029193,1750623058893,-1917.93,0.00035616,15]
[367029194,1750623058902,-490.0,0.00035616,15]
[367029195,1750623058912,-738.47,0.00035616,15]
[367029196,1750623058923,-490.0,0.00035616,15]
[367029197,1750623058933,-5559.1,0.00035616,15]
[367029198,1750623058943,-490.0,0.00035616,15]
[367029199,1750623058951,-545.7,0.00035616,15]
[367029200,1750623058961,-2128.15,0.00035616,15]
[367029201,1750623058970,-490.0,0.00035616,15]
[367029202,1750623058980,-1980.94,0.00035616,15]
[367029203,1750623058990,-1702.63,0.00035616,15]
[367029204,1750623059001,-490.0,0.00035616,15]
[367029205,1750623059011,-490.0,0.00035616,15]
[367029206,1750623059024,-490.0,0.00035616,15]
[367029207,1750623059034,-490.0,0.00035616,15]
[367029208,1750623059043,-1850.46,0.00035616,15]
[367029209,1750623059053,-490.0,0.00035616,15]
[367029210,1750623059062,-490.0,0.00035616,15]
[367029211,1750623059072,-490.0,0.00035616,15]
[367029212,1750623059082,-490.0,0.00035616,15]
[367029213,1750623059092,-505.92,0.00035616,15]
[367029214,1750623059102,-490.0,0.00035616,15]
[367029215,1750623059112,-2043.31,0.00035616,15]
[367029216,1750623059122,-490.0,0.00035616,15]
[367029217,1750623059132,-1514.53,0.00035616,15]
[367029218,1750623059142,-723.72,0.00035616,15]
[367029219,1750623059152,-1918.84,0.00035616,15]
[367029220,1750623059162,-490.0,0.00035616,15]
[367029221,1750623059171,-490.0,0.00035616,15]
[367029222,1750623059181,-490.0,0.00035616,15]
[367029223,1750623059191,-490.0,0.00035616,15]
[367029224,1750623059200,-2127.18,0.00035616,15]
[367029225,1750623059210,-891.88,0.00035616,15]
[367029226,1750623059220,-1950.75,0.00035616,15]
[367029227,1750623059231,-490.0,0.00035616,15]
[367029228,1750623059241,-1140.28,0.00035616,15]
[367029229,1750623059251,-490.0,0.00035616,15]
[367029230,1750623059263,-490.0,0.00035616,15]
[367029231,1750623059275,-490.0,0.00035616,15]
[367029232,1750623059285,-1385.37,0.00035616,15]
[367029233,1750623059296,-2895.53,0.00035616,15]
[367029234,1750623059306,-34959.79,0.00035616,15]
[367029235,1750623059316,-490.0,0.00035616,15]
[367029236,1750623059325,-844.43,0.00035616,15]
[367029237,1750623059335,-490.0,0.00035616,15]
[367029238,1750623059346,-1042.11,0.00035616,15]
[367029239,1750623059356,-490.0,0.00035616,15]
[367029240,1750623059366,-490.0,0.00035616,15]
[367029241,1750623059375,-490.0,0.00035616,15]
[367029242,1750623059385,-2879.61,0.00035616,15]
[367029243,1750623059395,-746.23,0.00035616,15]
[367029244,1750623059405,-1207.21,0.00035616,15]
[367029245,1750623059414,-614.72,0.00035616,15]
[367029246,1750623059424,-490.0,0.00035616,15]
[367029247,1750623059433,-2944.64,0.00035616,15]
[367029248,1750623059443,-490.0,0.00035616,15]
[367029249,1750623059453,-1879.92,0.00035616,15]
[367029250,1750623059463,-490.0,0.00035616,15]
[367029251,1750623059473,-500.0,0.00035616,15]
[367029252,1750623059483,-500.0,0.00035616,15]
[367029253,1750623059493,-500.0,0.00035616,15]
[367029254,1750623059503,-927.14,0.00035616,15]
[367029255,1750623059516,-1616.22,0.00035616,15]
[367029256,1750623059526,-2035.89,0.00035616,15]
[367029257,1750623059535,-500.0,0.00035616,15]
[367029258,1750623059545,-500.0,0.00035616,15]
[367029259,1750623059555,-490.0,0.00035616,15]
[367029260,1750623059565,-500.0,0.00035616,15]
[367029261,1750623059575,-503.07203056,0.00035616,15]
[367029262,1750623059586,-490.0,0.00035616,15]
[367029263,1750623059596,-708.82,0.00035616,15]
[367029264,1750623059606,-490.0,0.00035616,15]
[367029265,1750623059617,-1444.46,0.00035616,15]
[367029266,1750623059626,-490.0,0.00035616,15]
[367029267,1750623059636,-2411.85,0.00035616,15]
[367029268,1750623059646,-2109.18,0.00035616,15]
[367029269,1750623059655,-1325.89,0.00035616,15]
[367029270,1750623059665,-520.44,0.00035616,15]
[367029271,1750623059675,-568.02286091,0.00035616,15]
[367029272,1750623059685,-3679.5,0.00035616,15]
[367029273,1750623059696,-490.0,0.00035616,15]
[367029274,1750623059706,-490.0,0.00035616,15]
[367029275,1750623059716,-2340.44,0.00035616,15]
[367029276,1750623059726,-575.98,0.00035616,15]
[367029277,1750623059736,-2352.34,0.00035616,15]
[367029278,1750623059747,-591.5835004,0.00035616,15]
[367029279,1750623059757,-1629.35,0.00035616,15]
[367029280,1750623059773,-3251.66,0.00035616,15]
[367029281,1750623059783,-1723.8,0.00035616,15]
[367029282,1750623059793,-490.0,0.00035616,15]
[367029283,1750623059803,-1152.78,0.00035616,15]
[367029284,1750623059813,-2982.7,0.00035616,15]
[367029285,1750623059823,-1377.73,0.00035616,15]
[367029286,1750623059834,-490.0,0.00035616,15]
[367029287,1750623059843,-2848.97,0.00035616,15]
[367029288,1750623059854,-974.14,0.00035616,15]
[367029289,1750623059866,-490.0,0.00035616,15]
[367029290,1750623059876,-3032.15,0.00035616,15]
[367029291,1750623059886,-490.0,0.00035616,15]
[367029292,1750623059895,-824.15,0.00035616,15]
[367029293,1750623059907,-490.0,0.00035616,15]
[367029294,1750623059916,-490.0,0.00035616,15]
[367029295,1750623059926,-1169.86,0.00035616,15]
[367029296,1750623059939,-490.0,0.00035616,15]
[367029297,1750623059949,-2206.35,0.00035616,15]
[367029298,1750623059959,-490.0,0.00035616,15]
[367029299,1750623059968,-3479.23,0.00035616,15]
[367029300,1750623059978,-2150.01,0.00035616,15]
[367029301,1750623059988,-490.0,0.00035616,15]
[367029302,1750623059997,-490.0,0.00035616,15]
[367029303,1750623060007,-1716.3,0.00035616,15]
[367029304,1750623060019,-490.0,0.00035616,15]
[367029305,1750623060029,-490.0,0.00035616,15]
[367029306,1750623060039,-496.15760544,0.00035616,15]
[367029307,1750623060050,-887.79,0.00035616,15]
[367029308,1750623060061,-490.0,0.00035616,15]
[367029309,1750623060072,-490.0,0.00035616,15]
[367029310,1750623060081,-2804.95,0.00035616,15]
[367029311,1750623060091,-490.0,0.00035616,15]
[367029312,1750623060100,-674.66,0.00035616,15]
[367029313,1750623060110,-490.0,0.00035616,15]
[367029314,1750623060120,-5196.32,0.00035616,15]
[367029315,1750623060129,-490.0,0.00035616,15]
[367029316,1750623060138,-490.0,0.00035616,15]
[367029317,1750623060148,-742.66,0.00035616,15]
[367029318,1750623060157,-2228.36,0.00035616,15]
[367029319,1750623060167,-490.0,0.00035616,15]
[367029320,1750623060178,-490.0,0.00035616,15]
[367029321,1750623060187,-490.0,0.00035616,15]
[367029322,1750623060197,-1523.69,0.00035616,15]
[367029323,1750623060207,-2089.65,0.00035616,15]
[367029324,1750623060216,-768.33,0.00035616,15]
[367029325,1750623060226,-1599.57,0.00035616,15]
[367029326,1750623060236,-490.0,0.00035616,15]
[367029327,1750623060246,-490.0,0.00035616,15]
[367029328,1750623060255,-490.0,0.00035616,2]
[367029329,1750623060270,-528.3,0.00035616,15]
[367029330,1750623060280,-1079.64,0.00035616,15]
[367029331,1750623060290,-338.35374739,0.00035616,15]
[367029332,1750623060299,-9839.32,0.00035616,15]
[367029333,1750623060309,-800.42,0.00035616,15]
[367029334,1750623060318,-800.42,0.00035616,15]
[367029335,1750623060328,-1851.35,0.00035616,15]
[367029336,1750623060338,-800.42,0.00035616,15]
[367029337,1750623060348,-800.42,0.00035616,15]
[367029338,1750623060358,-800.42,0.00035616,15]
[367029339,1750623060367,-1708.01,0.00035616,15]
[367029340,1750623060377,-490.0,0.00035616,15]
[367029341,1750623060387,-1945.29,0.00035616,15]
[367029342,1750623060396,-800.42,0.00035616,15]
[367029343,1750623060406,-1279.68,0.00035616,15]
[367029344,1750623060416,-800.42,0.00035616,15]
[367029345,1750623060425,-1279.68,0.00035616,15]
[367029346,1750623060435,-284.97070251,0.00035616,15]
[367029347,1750623060444,-490.0,0.00035616,15]
[367029348,1750623060454,-1279.68,0.00035616,15]
[367029349,1750623060463,-800.42,0.00035616,15]
[367029350,1750623060473,-1279.68,0.00035616,15]
[367029351,1750623060483,-800.42,0.00035616,15]
[367029352,1750623060492,-1279.68,0.00035616,15]
[367029353,1750623060502,-800.42,0.00035616,15]
[367029354,1750623060515,-5292.05,0.00035616,15]
[367029355,1750623060526,-490.0,0.00035616,15]
[367029356,1750623060536,-361.00579947,0.00035616,15]
[367029357,1750623060547,-1279.68,0.00035616,15]
[367029358,1750623060557,-800.42,0.00035616,15]
[367029359,1750623060567,-1279.68,0.00035616,15]
[367029360,1750623060577,-800.42,0.00035616,15]
[367029361,1750623060587,-490.0,0.00035616,15]
[367029362,1750623060596,-1279.68,0.00035616,15]
[367029363,1750623060606,-490.0,0.00035616,15]
[367029364,1750623060616,-1279.68,0.00035616,15]
[367029365,1750623060626,-1279.68,0.00035616,15]
[367029366,1750623060636,-1279.68,0.00035616,15]
[367029367,1750623060647,-1705.17,0.00035616,15]
[367029368,1750623060656,-1279.68,0.00035616,15]
[367029369,1750623060667,-1279.68,0.00035616,15]
[367029370,1750623060677,-490.0,0.00035616,15]
[367029371,1750623060688,-1279.68,0.00035616,15]
[367029372,1750623060698,-1279.68,0.00035616,15]
[367029373,1750623060709,-491.61818048,0.00035616,15]
[367029374,1750623060719,-1279.68,0.00035616,15]
[367029375,1750623060730,-490.0,0.00035616,15]
[367029376,1750623060741,-3262.4,0.00035616,15]
[367029377,1750623060752,-800.42,0.00035616,15]
[367029378,1750623060762,-3580.17,0.00035616,15]
[367029379,1750623060779,-800.42,0.00035616,15]
[367029380,1750623060790,-800.42,0.00035616,15]
[367029381,1750623060800,-490.0,0.00035616,15]
[367029382,1750623060810,-6847.26,0.00035616,15]
[367029383,1750623060820,-455.64032913,0.00035616,15]
[367029384,1750623060831,-4138.33,0.00035616,15]
[367029385,1750623060846,-490.0,0.00035616,15]
[367029386,1750623060856,-490.0,0.00035616,15]
[367029387,1750623060871,-490.0,0.00035616,15]
[367029388,1750623060882,-490.0,0.00035616,15]
[367029389,1750623060895,-490.0,0.00035616,15]
[367029390,1750623060905,-1264.04,0.00035616,15]
[367029391,1750623060915,-610.32,0.00035616,15]
[367029392,1750623060925,-682.99,0.00035616,15]
[367029393,1750623060937,-2792.48,0.00035616,15]
[367029394,1750623060947,-500.0,0.00035616,15]
[367029395,1750623060958,-169.9739297,0.00035616,15]
[367029396,1750623060967,-1082.76,0.00035616,15]
[367029397,1750623060977,-490.0,0.00035616,15]
[367029398,1750623060987,-2134.73,0.00035616,15]
[367029399,1750623060997,-9385.51,0.00035616,15]
[367029400,1750623061008,-8229.28,0.00035616,15]
[367029401,1750623061024,-878.92,0.00035616,15]
[367029402,1750623061034,-1159.54,0.00035616,15]
[367029403,1750623061043,-616.29,0.00035616,15]
[367029404,1750623061053,-490.0,0.00035616,15]
[367029405,1750623061063,-490.0,0.00035616,15]
[367029406,1750623061072,-490.0,0.00035616,15]
[367029407,1750623061082,-490.0,0.00035616,15]
[367029408,1750623061092,-490.0,0.00035616,15]
[367029409,1750623061103,-3778.91,0.00035616,15]
[367029410,1750623061113,-490.0,0.00035616,15]
[367029411,1750623061123,-2189.67,0.00035616,15]
[367029412,1750623061134,-490.0,0.00035616,15]
[367029413,1750623061144,-1189.75,0.00035616,15]
[367029414,1750623061154,-7511.75,0.00035616,15]
[367029415,1750623061164,-490.0,0.00035616,15]
[367029416,1750623061174,-1540.78,0.00035616,15]
[367029417,1750623061185,-1941.35,0.00035616,15]
[367029418,1750623061195,-490.0,0.00035616,15]
[367029419,1750623061205,-490.0,0.00035616,15]
[367029420,1750623061216,-1940.54,0.00035616,15]
[367029421,1750623061226,-490.0,0.00035616,15]
[367029422,1750623061236,-2101.01,0.00035616,15]
[367029423,1750623061246,-490.0,0.00035616,15]
[367029424,1750623061256,-490.0,0.00035616,15]
[367029425,1750623061273,-2026.38,0.00035616,15]
[367029426,1750623061284,-1926.15,0.00035616,15]
[367029427,1750623061294,-1056.77,0.00035616,15]
[367029428,1750623061305,-490.0,0.00035616,15]
[367029429,1750623061315,-490.0,0.00035616,15]
[367029430,1750623061325,-490.0,0.00035616,15]
[367029431,1750623061335,-330.16559265,0.00035616,15]
[367029432,1750623061345,-895.27,0.00035616,15]
[367029433,1750623061356,-490.0,0.00035616,15]
[367029434,1750623061367,-490.0,0.00035616,15]
[367029435,1750623061378,-2121.94,0.00035616,15]
[367029436,1750623061388,-832.1,0.00035616,15]
[367029437,1750623061399,-832.1,0.00035616,15]
[367029438,1750623061409,-832.1,0.00035616,15]
[367029439,1750623061420,-832.1,0.00035616,15]
[367029440,1750623061430,-832.1,0.00035616,15]
[367029441,1750623061441,-490.0,0.00035616,15]
[367029442,1750623061794,-1550.89,0.00035616,15]
[367029443,1750623061804,-1520.57,0.00035616,15]
[367029444,1750623061815,-832.1,0.00035616,15]
[367029445,1750623061825,-632.2,0.00035616,15]
[367029446,1750623061835,-832.1,0.00035616,15]
[367029447,1750623061848,-460.200579,0.00035616,15]
[367029448,1750623061858,-832.1,0.00035616,15]
[367029449,1750623061869,-832.1,0.00035616,15]
[367029450,1750623061879,-832.1,0.00035616,15]